bitfinex/quotes_BTCUSD_20250124
["timestamp","ask_amount","ask_price","bid_price","bid_amount"]
[1737686333130,1.93752276,103400.0,103390.0,0.00023835]
[1737686333734,0.38842276,103400.0,103390.0,0.00023835]
[1737686333963,0.22768893,103400.0,103390.0,0.08043835]
[1737686334163,0.25068893,103400.0,103390.0,0.08043835]
[1737686334296,0.35842276,103400.0,103390.0,0.08043835]
[1737686336509,0.37842276,103400.0,103390.0,0.08043835]
[1737686336926,0.37842276,103400.0,103390.0,0.00023835]
[1737686337958,0.38842276,103400.0,103390.0,0.00023835]
[1737686339957,0.42712876,103400.0,103390.0,0.00023835]
[1737686340365,0.52447605,103400.0,103390.0,0.00023835]
[1737686340565,0.42712876,103400.0,103390.0,0.00023835]
[1737686342187,0.41712876,103400.0,103390.0,0.00023835]
[1737686343656,1.91712876,103400.0,103390.0,0.00023835]
[1737686343858,0.35842276,103400.0,103390.0,0.08003835]
[1737686344281,0.35842276,103400.0,103390.0,0.12573835]
[1737686345908,0.100711,103400.0,103390.0,0.22245935]
[1737686346620,0.20844483,103400.0,103390.0,0.12573835]
[1737686347428,0.100711,103400.0,103390.0,0.12573835]
[1737686347628,0.20744483,103400.0,103390.0,0.12573835]
[1737686347924,0.099711,103400.0,103390.0,0.12573835]
[1737686348484,0.096711,103400.0,103390.0,0.12573835]
[1737686348768,0.22744483,103400.0,103390.0,0.12573835]
[1737686348972,0.32479212,103400.0,103390.0,0.12573835]
[1737686349574,0.32479212,103400.0,103390.0,0.08003835]
[1737686349983,0.32779212,103400.0,103390.0,0.08003835]
[1737686351613,0.32879212,103400.0,103390.0,0.08003835]
[1737686362579,1.82879212,103400.0,103390.0,0.08003835]
[1737686363178,0.32879212,103400.0,103390.0,0.08003835]
[1737686363702,1.82879212,103400.0,103390.0,0.08003835]
[1737686363921,0.32879212,103400.0,103390.0,0.00023835]
[1737686364127,0.34879212,103400.0,103390.0,0.00023835]
[1737686364344,1.84879212,103400.0,103390.0,0.00023835]
[1737686367581,0.34879212,103400.0,103390.0,0.00023835]
[1737686368135,1.84879212,103400.0,103390.0,0.00023835]
[1737686372233,1.82879212,103400.0,103390.0,0.00023835]
[1737686372480,1.84879212,103400.0,103390.0,0.00023835]
[1737686378848,1.82879212,103400.0,103390.0,0.00023835]
[1737686379192,1.84879212,103400.0,103390.0,0.00023835]
[1737686379751,1.82879212,103400.0,103390.0,0.00023835]
[1737686380093,1.84879212,103400.0,103390.0,0.00023835]
[1737686380289,1.82879212,103400.0,103390.0,0.00023835]
[1737686380514,0.30579212,103400.0,103390.0,0.27833835]
[1737686381134,0.32879212,103400.0,103390.0,0.27833835]
[1737686384261,0.32879212,103400.0,103390.0,0.08233835]
[1737686385309,1.82879212,103400.0,103390.0,0.08233835]
[1737686390395,0.55108521,103400.0,103390.0,0.00023835]
[1737686390603,0.149721,103390.0,103370.0,0.0800422]
[1737686390781,1.93254495,103380.0,103370.0,0.08013834]
[1737686390969,1.95254495,103380.0,103370.0,0.08013834]
[1737686392485,1.95354495,103380.0,103370.0,0.08013834]
[1737686392879,1.95654495,103380.0,103370.0,0.08013834]
[1737686393710,1.95654495,103380.0,103370.0,0.00023834]
[1737686393871,1.96654495,103380.0,103370.0,0.00023834]
[1737686395308,1.99154495,103380.0,103370.0,0.00023834]
[1737686395972,2.05924495,103380.0,103370.0,3.4e-07]
[1737686396129,2.06867099,103380.0,103370.0,3.4e-07]
[1737686396338,2.08825941,103380.0,103370.0,3.4e-07]
[1737686396686,2.08525941,103380.0,103370.0,3.4e-07]
[1737686396881,2.09125941,103380.0,103370.0,3.4e-07]
[1737686397243,2.09025941,103380.0,103370.0,3.4e-07]
[1737686397618,2.09225941,103380.0,103370.0,0.00014254]
[1737686398257,2.09225941,103380.0,103370.0,5.4e-07]
[1737686403200,2.1896067,103380.0,103370.0,5.4e-07]
[1737686403434,0.129749,103360.0,103350.0,0.0001422]
[1737686403637,0.66213012,103360.0,103350.0,0.00063949]
[1737686404241,2.26986395,103360.0,103350.0,0.00063949]
[1737686405075,0.139758,103350.0,103340.0,0.0761422]
[1737686405286,0.139758,103350.0,103330.0,0.0463]
[1737686405287,0.119767,103340.0,103330.0,0.1236]
[1737686405499,0.32484812,103340.0,103330.0,0.07734968]
[1737686405909,1.82484812,103340.0,103330.0,0.07734968]
[1737686406325,1.82484812,103340.0,103330.0,0.12364968]
[1737686406548,0.19411429,103340.0,103330.0,0.12364968]
[1737686406726,0.096767,103340.0,103330.0,0.22042668]
[1737686407189,0.290294,103350.0,103340.0,0.228467]
[1737686407392,0.097765,103350.0,103340.0,0.228467]
[1737686407723,0.096765,103350.0,103340.0,0.1317]
[1737686407938,0.20449883,103350.0,103340.0,0.1317]
[1737686408948,0.20749883,103350.0,103340.0,0.1318423]
[1737686414195,0.099765,103350.0,103340.0,0.2286093]
[1737686414445,0.099765,103350.0,103340.0,0.1318423]
[1737686415058,0.20749883,103350.0,103340.0,0.1318423]
[1737686416482,0.32784612,103350.0,103340.0,0.1318423]
[1737686416741,0.43557995,103350.0,103340.0,0.1318423]
[1737686416947,0.32784612,103350.0,103340.0,0.1318423]
[1737686417818,1.82784612,103350.0,103340.0,0.1318423]
[1737686418572,0.32784612,103350.0,103340.0,0.1318423]
[1737686420765,0.099765,103350.0,103340.0,0.2286093]
[1737686420937,0.20779766,103350.0,103340.0,0.1318423]
[1737686421298,0.32814495,103350.0,103340.0,0.1318423]
[1737686421508,0.43587878,103350.0,103340.0,0.1318423]
[1737686422147,0.32814495,103350.0,103340.0,0.1318423]
[1737686422314,0.43587878,103350.0,103340.0,0.1318423]
[1737686422759,0.32814495,103350.0,103340.0,0.1318423]
[1737686423062,0.43587878,103350.0,103340.0,0.1318423]
[1737686424401,0.43587878,103350.0,103340.0,0.0821423]
[1737686426904,1.93587878,103350.0,103340.0,0.0821423]
[1737686428251,1.95587878,103350.0,103340.0,0.0001423]
[1737686428403,2.06322607,103350.0,103340.0,0.0001423]
[1737686429587,1.96587878,103350.0,103340.0,0.0001423]
[1737686430969,2.38742799,103350.0,103340.0,0.0001423]
[1737686432011,2.38442799,103350.0,103340.0,0.0001423]
[1737686432140,2.39642799,103350.0,103340.0,0.0001423]
[1737686432608,3.09642799,103350.0,103340.0,0.0001423]
[1737686432842,1.59642799,103350.0,103340.0,0.0001423]
[1737686433240,1.68377528,103350.0,103340.0,3e-07]
[1737686433699,1.58642799,103350.0,103340.0,3e-07]
[1737686435233,1.64445799,103350.0,103340.0,3e-07]
[1737686436303,1.69135799,103350.0,103340.0,3e-07]
[1737686437186,1.36405799,103350.0,103340.0,3e-07]
[1737686437418,0.77038387,103340.0,103330.0,9.98e-06]
[1737686437632,3.11643116,103340.0,103330.0,9.98e-06]
[1737686437852,2.84716116,103340.0,103330.0,9.98e-06]
[1737686438060,1.17389416,103340.0,103320.0,1.8e-07]
[1737686438283,0.149786,103320.0,103310.0,0.0001423]
[1737686438486,0.35486712,103320.0,103310.0,0.00019196]
[1737686438674,0.38621633,103320.0,103310.0,0.00019196]
[1737686439869,0.43581633,103320.0,103310.0,0.00019196]
[1737686440070,0.51555016,103320.0,103310.0,9.6e-07]
[1737686440389,0.69049745,103320.0,103310.0,9.6e-07]
[1737686440547,0.39661287,103310.0,103300.0,0.0001423]
[1737686440755,0.82126016,103310.0,103300.0,0.00023858]
[1737686441350,0.71352633,103310.0,103300.0,0.00023858]
[1737686441760,1.42052633,103310.0,103300.0,0.00023858]
[1737686441985,1.41452633,103310.0,103300.0,0.00023858]
[1737686442205,1.61352633,103310.0,103300.0,0.00023858]
[1737686442415,1.62252633,103310.0,103300.0,0.00023858]
[1737686442619,1.62452633,103310.0,103300.0,0.00023858]
[1737686443035,1.59317712,103310.0,103300.0,0.00023858]
[1737686443590,1.58317712,103310.0,103300.0,0.00023858]
[1737686443991,1.58317712,103310.0,103300.0,0.12623858]
[1737686443992,1.56317712,103310.0,103300.0,0.12623858]
[1737686444251,0.40514329,103310.0,103300.0,0.27623858]
[1737686444786,0.40514329,103310.0,103300.0,0.37304358]
[1737686445000,0.51287712,103310.0,103300.0,0.27623858]
[1737686445200,0.50187712,103310.0,103300.0,0.27623858]
[1737686445609,0.50887712,103310.0,103300.0,0.27623858]
[1737686446593,0.56322633,103310.0,103300.0,0.27623858]
[1737686447028,0.56322633,103310.0,103300.0,0.23093858]
[1737686447236,0.58322633,103310.0,103300.0,0.08093858]
[1737686447755,0.78830745,103310.0,103300.0,0.00023858]
[1737686448369,0.58322633,103310.0,103300.0,0.00023858]
[1737686449544,0.56022633,103310.0,103300.0,0.00023858]
[1737686450495,0.52887712,103310.0,103300.0,0.00023858]
[1737686450704,2.02887712,103310.0,103300.0,0.00023858]
[1737686451144,0.50887712,103310.0,103300.0,0.00023858]
[1737686451550,0.50887712,103310.0,103300.0,0.08073858]
[1737686451757,0.50887712,103310.0,103300.0,0.12763858]
[1737686452423,0.52869753,103310.0,103300.0,0.12763858]
[1737686456344,0.52899657,103310.0,103300.0,0.12763858]
[1737686457207,0.40144233,103310.0,103300.0,0.12763858]
[1737686458697,0.50917616,103310.0,103300.0,0.12763858]
[1737686459952,0.40144233,103310.0,103300.0,0.12763858]
[1737686460951,0.40044233,103310.0,103300.0,0.12763858]
[1737686461386,0.39444233,103310.0,103300.0,0.12763858]
[1737686461867,0.50217616,103310.0,103300.0,0.12763858]
[1737686462814,0.50617616,103310.0,103300.0,0.12763858]
[1737686466789,0.50617616,103310.0,103300.0,0.08073858]
[1737686467143,2.00617616,103310.0,103300.0,0.08073858]
[1737686467354,0.50617616,103310.0,103300.0,0.08073858]
[1737686467749,2.00617616,103310.0,103300.0,0.08073858]
[1737686471490,0.50617616,103310.0,103300.0,0.08073858]
[1737686473518,0.52617616,103310.0,103300.0,0.00023858]
[1737686475188,0.93637616,103310.0,103300.0,0.00023858]
[1737686476501,0.93237616,103310.0,103300.0,0.00023858]
[1737686476733,0.94137616,103310.0,103300.0,0.00023858]
[1737686477270,0.94337616,103310.0,103300.0,0.00023858]
[1737686477932,0.9828467,103310.0,103300.0,0.00023858]
[1737686478940,0.94337616,103310.0,103300.0,0.00023858]
[1737686479297,1.64337616,103310.0,103300.0,0.00023858]
[1737686482164,1.64337616,103310.0,103300.0,0.07893858]
[1737686482165,1.54047616,103310.0,103300.0,0.07893858]
[1737686482568,1.56047616,103310.0,103300.0,0.07893858]
[1737686483211,0.86047616,103310.0,103300.0,0.07893858]
[1737686486987,1.616805,103300.0,103290.0,0.0001423]
[1737686487218,1.616805,103300.0,103290.0,0.07813854]
[1737686487219,0.32188612,103300.0,103290.0,0.07813854]
[1737686488110,0.30188612,103300.0,103290.0,0.07813854]
[1737686489177,0.50188612,103300.0,103290.0,0.07813854]
[1737686489497,0.50888612,103300.0,103290.0,0.07813854]
[1737686491172,0.51845421,103300.0,103290.0,0.07813854]
[1737686491693,0.53787274,103300.0,103290.0,0.07813854]
[1737686494574,0.43013891,103300.0,103290.0,0.07813854]
[1737686494784,0.53787274,103300.0,103290.0,0.07813854]
[1737686495951,0.32322353,103300.0,103290.0,0.12693854]
[1737686496375,0.43095736,103300.0,103290.0,0.12693854]
[1737686497152,0.32322353,103300.0,103290.0,0.12693854]
[1737686497657,0.43095736,103300.0,103290.0,0.12693854]
[1737686499328,0.52830465,103300.0,103290.0,0.12693854]
[1737686502487,0.52860369,103300.0,103290.0,0.12693854]
[1737686507618,0.32352257,103300.0,103290.0,0.12693854]
[1737686508296,0.32352257,103300.0,103290.0,0.27693854]
[1737686508741,0.31652257,103300.0,103290.0,0.27693854]
[1737686508968,0.31952257,103300.0,103290.0,0.27693854]
[1737686509193,0.31652257,103300.0,103290.0,0.27693854]
[1737686509621,0.31952257,103300.0,103290.0,0.27693854]
[1737686509843,0.52460369,103300.0,103290.0,0.27693854]
[1737686518511,0.41686986,103300.0,103290.0,0.27693854]
[1737686518641,0.31952257,103300.0,103290.0,0.27693854]
[1737686519053,0.4272564,103300.0,103290.0,0.27693854]
[1737686519771,0.4272564,103300.0,103290.0,0.27793854]
[1737686520343,0.4242564,103300.0,103290.0,0.27793854]
[1737686520760,0.4242564,103300.0,103290.0,0.12793854]
[1737686521160,0.4282564,103300.0,103290.0,0.12793854]
[1737686521363,0.52560369,103300.0,103290.0,0.12793854]
[1737686521781,0.52560369,103300.0,103290.0,0.12693854]
[1737686523369,0.32052257,103300.0,103290.0,0.12693854]
[1737686529428,0.20429904,103300.0,103290.0,0.22375254]
[1737686529638,0.20429904,103300.0,103290.0,0.2538772]
[1737686530425,0.20029904,103300.0,103290.0,0.2538772]
[1737686530647,0.29710404,103300.0,103290.0,0.1570632]
[1737686530849,0.40483787,103300.0,103290.0,0.1570632]
[1737686531029,0.40483787,103300.0,103290.0,0.12693854]
[1737686531601,0.50218516,103300.0,103290.0,0.12793854]
[1737686535265,0.51178372,103300.0,103290.0,0.12793854]
[1737686537920,0.51178372,103300.0,103290.0,0.12693854]
[1737686538543,0.51578372,103300.0,103290.0,0.12693854]
[1737686545761,0.47891902,103300.0,103290.0,0.12693854]
[1737686545962,0.46932046,103300.0,103290.0,0.12693854]
[1737686547425,0.39845133,103300.0,103290.0,0.12693854]
[1737686548056,0.46932046,103300.0,103290.0,0.12693854]
[1737686549242,0.46532046,103300.0,103290.0,0.12693854]
[1737686549464,0.46532046,103300.0,103290.0,0.12793854]
[1737686550113,0.46932046,103300.0,103290.0,0.12693854]
[1737686551657,0.62402046,103300.0,103290.0,0.00023854]
[1737686551863,0.69488959,103300.0,103290.0,0.00023854]
[1737686552078,0.76575872,103300.0,103290.0,0.00023854]
[1737686552523,0.69488959,103300.0,103290.0,0.00023854]
[1737686553111,0.69588959,103300.0,103290.0,0.00023854]
[1737686553458,0.69188959,103300.0,103290.0,0.00023854]
[1737686553685,0.66519277,103300.0,103290.0,0.00023854]
[1737686555042,0.75211371,103300.0,103290.0,0.00023854]
[1737686556173,2.25211371,103300.0,103290.0,0.00023854]
[1737686556942,0.75211371,103300.0,103290.0,0.00023854]
[1737686557125,0.86015515,103300.0,103290.0,0.00023854]
[1737686557320,2.36015515,103300.0,103290.0,0.00023854]
[1737686558998,2.27323421,103300.0,103290.0,0.00023854]
[1737686564505,2.19043421,103300.0,103290.0,0.00023854]
[1737686564737,2.08239277,103300.0,103290.0,0.00023854]
[1737686567123,2.03349277,103300.0,103290.0,0.00023854]
[1737686569753,0.51049277,103300.0,103290.0,0.00023854]
[1737686571813,0.51049277,103300.0,103290.0,0.08153854]
[1737686573697,0.54421533,103300.0,103290.0,0.08153854]
[1737686573901,0.47333333,103300.0,103290.0,0.08153854]
[1737686575958,0.54421533,103300.0,103290.0,0.08153854]
[1737686576676,0.47333333,103300.0,103290.0,0.08153854]
[1737686577219,0.54421533,103300.0,103290.0,0.08153854]
[1737686577938,0.47333333,103300.0,103290.0,0.08153854]
[1737686578303,0.47333333,103300.0,103290.0,0.00023854]
[1737686578304,0.64541142,103300.0,103290.0,0.00023854]
[1737686578554,2.07452942,103300.0,103290.0,0.00023854]
[1737686578705,2.14541142,103300.0,103290.0,0.00023854]
[1737686578902,2.07452942,103300.0,103290.0,0.00023854]
[1737686579326,0.61509733,103300.0,103290.0,0.00023854]
[1737686579773,0.5104943,103300.0,103290.0,0.00023854]
[1737686579974,2.0104943,103300.0,103290.0,0.00023854]
[1737686582990,0.5104943,103300.0,103290.0,0.22833854]
[1737686583193,0.5104943,103300.0,103290.0,0.27523854]
[1737686585122,0.5094943,103300.0,103290.0,0.27523854]
[1737686587149,0.40145133,103300.0,103290.0,0.27523854]
[1737686587555,0.5094943,103300.0,103290.0,0.27523854]
[1737686588966,0.5024943,103300.0,103290.0,0.27523854]
[1737686589386,0.5064943,103300.0,103290.0,0.27523854]
[1737686589800,0.5054943,103300.0,103290.0,0.27523854]
[1737686592847,0.5054943,103300.0,103290.0,0.07833854]
[1737686602190,0.20329904,103300.0,103290.0,0.32515254]
[1737686602397,0.20329904,103300.0,103290.0,0.37505254]
[1737686602601,0.30010404,103300.0,103290.0,0.37505254]
[1737686603039,0.20329904,103300.0,103290.0,0.37505254]
[1737686603252,0.20329904,103300.0,103290.0,0.40512427]
[1737686604341,0.19929904,103300.0,103290.0,0.40612427]
[1737686605586,0.19929904,103300.0,103290.0,0.50347156]
[1737686606405,0.19929904,103300.0,103290.0,1.36657156]
[1737686608052,0.19929904,103300.0,103290.0,1.37657156]
[1737686609223,0.19929904,103300.0,103290.0,1.36657156]
[1737686609440,0.19929904,103300.0,103290.0,1.26822427]
[1737686609865,0.19929904,103300.0,103290.0,1.27022427]
[1737686610189,0.19929904,103300.0,103290.0,1.2797735]
[1737686610389,0.19929904,103300.0,103290.0,1.24970177]
[1737686610665,0.19929904,103300.0,103290.0,1.25070177]
[1737686611379,0.40414701,103300.0,103290.0,0.99433854]
[1737686611587,0.5014943,103300.0,103290.0,0.86633854]
[1737686612219,0.5014943,103300.0,103290.0,0.86433854]
[1737686612438,0.5014943,103300.0,103290.0,0.00223854]
[1737686613428,0.5014943,103300.0,103290.0,0.00123854]
[1737686618872,0.5210248,103300.0,103290.0,0.00123854]
[1737686625613,0.5210248,103300.0,103290.0,0.37595254]
[1737686625614,0.31563454,103300.0,103290.0,0.37595254]
[1737686627109,0.31563454,103300.0,103290.0,0.27913854]
[1737686628114,0.31563454,103300.0,103290.0,0.37595254]
[1737686628745,0.42367751,103300.0,103290.0,0.27913854]
[1737686635915,0.31563454,103300.0,103290.0,0.27913854]
[1737686638528,0.21882954,103300.0,103290.0,0.37595254]
[1737686642297,0.31563454,103300.0,103290.0,0.37595254]
[1737686642517,0.42367751,103300.0,103290.0,0.27913854]
[1737686642738,0.42367751,103300.0,103290.0,0.37595254]
[1737686643151,0.42367751,103300.0,103290.0,0.23143854]
[1737686646272,0.42367751,103300.0,103290.0,0.15123854]
[1737686646273,0.5210248,103300.0,103290.0,0.15123854]
[1737686667850,0.48385914,103300.0,103290.0,0.15123854]
[1737686669597,0.55473645,103300.0,103290.0,0.15123854]
[1737686675427,0.48385914,103300.0,103290.0,0.15123854]
[1737686679121,0.48385914,103300.0,103290.0,0.22623854]
[1737686685839,0.55473645,103300.0,103290.0,0.22623854]
[1737686691214,0.55473645,103300.0,103290.0,0.15123854]
[1737686693021,0.48385914,103300.0,103290.0,0.15123854]
[1737686693455,0.48385914,103300.0,103290.0,0.23083854]
[1737686695435,0.55473645,103300.0,103290.0,0.23083854]
[1737686696426,0.48385914,103300.0,103290.0,0.23083854]
[1737686698780,0.55473645,103300.0,103290.0,0.23083854]
[1737686703049,0.55473645,103300.0,103290.0,0.08083854]
[1737686704350,0.55473645,103300.0,103290.0,0.00123854]
[1737686704351,0.67411376,103300.0,103290.0,0.00123854]
[1737686704551,0.74941376,103300.0,103290.0,0.00123854]
[1737686704755,0.23856862,103290.0,103280.0,0.000142]
[1737686705122,1.83591591,103290.0,103280.0,0.0002384]
[1737686706173,1.83991591,103290.0,103280.0,0.0002384]
[1737686708358,2.03991591,103290.0,103280.0,0.0002384]
[1737686709675,0.53991591,103290.0,103280.0,0.0002384]
[1737686710189,0.54944354,103290.0,103280.0,0.0002384]
[1737686712445,0.47856623,103290.0,103280.0,0.0799384]
[1737686712877,0.54944354,103290.0,103280.0,0.0799384]
[1737686713504,0.54944354,103290.0,103280.0,0.0002384]
[1737686720045,0.64332085,103290.0,103280.0,0.0002384]
[1737686720244,0.74933486,103290.0,103280.0,0.0002384]
[1737686720451,0.67845755,103290.0,103280.0,0.0002384]
[1737686722575,0.023,103280.0,103260.0,0.07085012]
[1737686722802,0.023,103280.0,103240.0,0.00101947]
[1737686722803,0.096852,103250.0,103240.0,0.00101947]
[1737686723037,0.42983122,103250.0,103240.0,0.00089947]
[1737686723253,0.38175391,103250.0,103240.0,0.00089947]
[1737686723866,0.45263122,103250.0,103240.0,0.00104167]
[1737686724114,0.48594523,103250.0,103240.0,0.0001422]
[1737686724331,0.68594523,103250.0,103240.0,0.00063998]
[1737686724917,0.68794523,103250.0,103240.0,0.00063998]
[1737686725700,2.0804856,103250.0,103240.0,0.00063998]
[1737686725926,2.0864856,103250.0,103240.0,0.00063998]
[1737686726672,2.1946579,103250.0,103240.0,0.00063998]
[1737686727123,2.31285514,103250.0,103240.0,9.8e-07]
[1737686727349,0.81285514,103250.0,103240.0,9.8e-07]
[1737686727561,0.81285514,103250.0,103220.0,0.025]
[1737686727562,0.096871,103230.0,103220.0,0.025]
[1737686727764,0.52508289,103230.0,103220.0,0.02514932]
[1737686727969,0.55571528,103230.0,103220.0,0.02514932]
[1737686728192,0.75571528,103230.0,103220.0,0.02514932]
[1737686728611,0.3132336,103210.0,103200.0,0.0878423]
[1737686728814,0.41058089,103210.0,103200.0,0.01019209]
[1737686729029,1.94121328,103210.0,103200.0,0.01019209]
[1737686729250,1.96421328,103210.0,103200.0,0.01019209]
[1737686730262,1.97321328,103210.0,103200.0,0.01019209]
[1737686730482,1.96421328,103210.0,103200.0,0.01019209]
[1737686730708,1.96621328,103210.0,103200.0,0.01019209]
[1737686730910,1.8637806,103210.0,103200.0,0.01019209]
[1737686731087,0.4719529,103210.0,103200.0,0.01019209]
[1737686731295,0.6719529,103210.0,103200.0,0.01019209]
[1737686731500,0.5637806,103210.0,103200.0,0.01019209]
[1737686731902,0.56181727,103210.0,103200.0,0.01019209]
[1737686732280,0.53307765,103210.0,103200.0,0.01019209]
[1737686732652,0.51340859,103210.0,103200.0,0.01019209]
[1737686732890,0.211,103210.0,103200.0,0.01019209]
[1737686733094,0.211,103210.0,103200.0,0.18749109]
[1737686733302,0.211,103210.0,103200.0,0.33383838]
[1737686733921,0.209,103210.0,103200.0,0.33383838]
[1737686734313,0.2,103210.0,103200.0,0.33383838]
[1737686735975,0.2,103210.0,103200.0,0.343617]
[1737686736382,0.2,103210.0,103200.0,0.344617]
[1737686737412,0.2,103210.0,103200.0,0.24726971]
[1737686739204,0.2,103210.0,103200.0,0.23749109]
[1737686739817,0.296889,103210.0,103200.0,0.23749109]
[1737686740148,0.296889,103210.0,103200.0,0.14059209]
[1737686741240,0.296889,103210.0,103200.0,0.23749109]
[1737686742651,0.2,103210.0,103200.0,0.23749109]
[1737686752882,0.296889,103210.0,103200.0,0.23749109]
[1737686754004,0.296889,103210.0,103200.0,0.18849109]
[1737686754213,0.319889,103210.0,103200.0,0.09159209]
[1737686754416,0.52540859,103210.0,103200.0,0.01119209]
[1737686755219,0.52540859,103210.0,103200.0,0.01019209]
[1737686755563,0.52540859,103210.0,103200.0,0.01119209]
[1737686755771,0.52940859,103210.0,103200.0,0.01119209]
[1737686756000,0.42123629,103210.0,103200.0,0.01019209]
[1737686757735,0.52940859,103210.0,103200.0,0.01019209]
[1737686760844,0.42123629,103210.0,103200.0,0.01019209]
[1737686761244,0.32042133,103210.0,103200.0,0.08529209]
[1737686761451,0.204,103210.0,103200.0,0.22729109]
[1737686761684,0.204,103210.0,103200.0,0.2574651]
[1737686762693,0.2,103210.0,103200.0,0.35581239]
[1737686763168,0.2,103210.0,103200.0,0.50581239]
[1737686766805,0.2,103210.0,103200.0,0.51581239]
[1737686767073,0.12735703,103210.0,103200.0,0.51581239]
[1737686767324,0.12735703,103210.0,103200.0,0.81581239]
[1737686767564,0.12735703,103210.0,103200.0,0.81481239]
[1737686767803,0.12735703,103210.0,103200.0,0.81681239]
[1737686768054,0.12835703,103210.0,103200.0,0.52749092]
[1737686768281,0.12835703,103210.0,103200.0,0.51549092]
[1737686768554,0.201,103210.0,103200.0,0.51549092]
[1737686768805,0.201,103210.0,103200.0,0.51749092]
[1737686772058,0.201,103210.0,103200.0,0.52749092]
[1737686777610,0.201,103210.0,103200.0,0.09734729]
[1737686777811,0.201,103210.0,103200.0,0.19424629]
[1737686779619,0.201,103210.0,103200.0,0.34424629]
[1737686780546,0.201,103210.0,103200.0,0.47014629]
[1737686783182,0.20129904,103210.0,103200.0,0.47014629]
[1737686783635,0.20129904,103210.0,103200.0,0.59204629]
[1737686784063,0.20129904,103210.0,103200.0,0.62216681]
[1737686787684,0.12866022,103210.0,103200.0,1.24516681]
[1737686788870,0.12866022,103210.0,103200.0,1.09516681]
[1737686789049,0.13066022,103210.0,103200.0,1.09616681]
[1737686789408,0.20229904,103210.0,103200.0,1.09616681]
[1737686789605,0.20129904,103210.0,103200.0,1.09516681]
[1737686789808,0.20129904,103210.0,103200.0,0.97326681]
[1737686790015,0.20229904,103210.0,103200.0,0.67426681]
[1737686790434,0.20129904,103210.0,103200.0,0.67426681]
[1737686790832,0.20129904,103210.0,103200.0,0.68126681]
[1737686790833,0.20229904,103210.0,103200.0,0.68126681]
[1737686791042,0.20229904,103210.0,103200.0,0.70126681]
[1737686792057,0.20229904,103210.0,103200.0,0.68126681]
[1737686792261,0.20229904,103210.0,103200.0,0.70126681]
[1737686793369,0.20229904,103210.0,103200.0,0.68126681]
[1737686794949,0.20229904,103210.0,103200.0,0.68140921]
[1737686798168,0.20229904,103210.0,103200.0,0.70140921]
[1737686798368,0.20229904,103210.0,103200.0,0.68140921]
[1737686798730,0.20229904,103210.0,103200.0,0.70140921]
[1737686799537,0.20229904,103210.0,103200.0,0.68140921]
[1737686800168,0.20229904,103210.0,103200.0,0.70140921]
[1737686801330,0.20229904,103210.0,103200.0,0.70080127]
[1737686804054,0.20229904,103210.0,103200.0,0.68080127]
[1737686804996,0.20229904,103210.0,103200.0,0.70080127]
[1737686805618,0.20229904,103210.0,103200.0,0.68080127]
[1737686806052,0.20229904,103210.0,103200.0,0.55490127]
[1737686809103,0.25119904,103210.0,103200.0,0.45816192]
[1737686809307,0.25119904,103210.0,103200.0,0.4280414]
[1737686809308,0.33149904,103210.0,103200.0,0.4280414]
[1737686809526,0.33149904,103210.0,103200.0,0.3311424]
[1737686809818,0.33149904,103210.0,103200.0,0.4280414]
[1737686810230,0.32949904,103210.0,103200.0,0.4200414]
[1737686810461,0.32949904,103210.0,103200.0,0.4220414]
[1737686810659,0.32949904,103210.0,103200.0,0.4240414]
[1737686811428,0.32949904,103210.0,103200.0,0.1010414]
[1737686811631,0.42638804,103210.0,103200.0,0.0041424]
[1737686811836,0.32949904,103210.0,103200.0,0.0041424]
[1737686812891,0.32949904,103210.0,103200.0,0.1010414]
[1737686814169,0.42638804,103210.0,103200.0,0.0041424]
[1737686814528,0.32949904,103210.0,103190.0,0.193806]
[1737686814705,0.0757,103200.0,103190.0,0.09695171]
[1737686815124,0.1249,103200.0,103190.0,4.971e-05]
[1737686815267,0.3299713,103200.0,103190.0,4.971e-05]
[1737686815470,0.42731859,103200.0,103190.0,4.971e-05]
[1737686815672,0.10734729,103200.0,103190.0,4.971e-05]
[1737686815895,0.30241859,103200.0,103190.0,4.971e-05]
[1737686816512,0.41059089,103200.0,103190.0,4.971e-05]
[1737686816738,0.30241859,103200.0,103190.0,0.00204971]
[1737686816883,0.30241859,103200.0,103190.0,0.00604971]
[1737686817080,0.50241859,103200.0,103190.0,0.00404971]
[1737686817316,0.50241859,103200.0,103190.0,0.02304971]
[1737686817518,0.61159089,103200.0,103190.0,4.971e-05]
[1737686817718,0.096918,103180.0,103170.0,0.0001422]
[1737686818006,0.23997484,103180.0,103160.0,0.01427939]
[1737686818370,0.33690184,103170.0,103160.0,0.01427939]
[1737686818721,0.35792954,103170.0,103160.0,0.03623113]
[1737686819192,0.55792954,103170.0,103160.0,0.03623113]
[1737686819808,0.63164659,103170.0,103160.0,0.03623113]
[1737686820008,0.66610184,103170.0,103160.0,0.03623113]
[1737686820357,0.66610184,103170.0,103160.0,0.03723113]
[1737686820798,0.66610184,103170.0,103160.0,0.03623113]
[1737686821005,0.77427414,103170.0,103160.0,0.03623113]
[1737686821390,0.66610184,103170.0,103160.0,0.01323113]
[1737686821580,0.77427414,103170.0,103160.0,0.01323113]
[1737686821833,0.66610184,103170.0,103160.0,0.01323113]
[1737686822018,0.77427414,103170.0,103160.0,0.01323113]
[1737686822434,0.77427414,103170.0,103160.0,0.01317377]
[1737686822817,0.77627414,103170.0,103160.0,0.01317377]
[1737686823228,0.78835401,103170.0,103160.0,0.01317377]
[1737686823637,0.75389876,103170.0,103160.0,0.01317377]
[1737686824059,2.31535401,103170.0,103160.0,0.01317377]
[1737686824259,2.4127013,103170.0,103160.0,7.7e-07]
[1737686825003,2.31535401,103170.0,103160.0,7.7e-07]
[1737686825536,2.14372646,103170.0,103160.0,7.7e-07]
[1737686825730,0.78089876,103170.0,103160.0,7.7e-07]
[1737686825907,0.78789876,103170.0,103160.0,7.7e-07]
[1737686826114,0.81664106,103170.0,103160.0,7.7e-07]
[1737686827039,0.79664106,103170.0,103160.0,7.7e-07]
[1737686827259,0.81664106,103170.0,103160.0,7.7e-07]
[1737686828252,0.90376754,103170.0,103160.0,7.7e-07]
[1737686828815,0.87502524,103170.0,103160.0,7.7e-07]
[1737686829260,0.87502524,103170.0,103160.0,0.00014317]
[1737686829467,0.87532428,103170.0,103160.0,0.00014317]
[1737686829792,0.87532428,103170.0,103160.0,1.7e-07]
[1737686830001,0.224955,103140.0,103130.0,0.00104167]
[1737686830213,0.43047459,103140.0,103130.0,0.00104167]
[1737686830642,0.43047459,103140.0,103130.0,0.0001422]
[1737686830850,0.32230229,103140.0,103130.0,0.0001422]
[1737686831272,0.63047459,103140.0,103130.0,0.0002005]
[1737686831532,0.67827531,103140.0,103130.0,0.0002005]
[1737686832385,0.68027531,103140.0,103130.0,0.0002005]
[1737686832606,0.65159646,103140.0,103130.0,0.0002005]
[1737686833268,0.87711605,103140.0,103130.0,0.0002005]
[1737686833487,0.87711605,103140.0,103100.0,0.00095947]
[1737686833488,0.223983,103110.0,103100.0,0.00095947]
[1737686833693,0.53767489,103110.0,103100.0,0.00269952]
[1737686833900,2.03767489,103110.0,103100.0,6e-05]